fUST/lending_fUST_20250927
["ID","MTS","AMOUNT","RATE_DAILY","PERIOD"]
[388021077,1758966670089,-480.0,0.00036712,9]
[388021078,1758966670098,-196.305121,0.00036712,30]
[388021079,1758966670107,-1567.83,0.00036712,9]
[388021080,1758966670116,-480.0,0.00036712,9]
[388021081,1758966670126,-480.0,0.00036712,9]
[388021082,1758966670136,-466.30771664,0.00036712,9]
[388021083,1758966670146,-480.0,0.00036712,9]
[388021084,1758966670155,-480.0,0.00036712,9]
[388021085,1758966670164,-710.01,0.00036712,9]
[388021086,1758966670174,-550.59902182,0.00036712,9]
[388021087,1758966670183,-500.0,0.00036712,9]
[388021088,1758966670192,-151.0,0.00036712,30]
[388021089,1758966670201,-776.45,0.00036712,9]
[388021090,1758966670211,-480.0,0.00036712,9]
[388021091,1758966670220,-430.368419,0.00036712,30]
[388021092,1758966670229,-1797.55,0.00036712,9]
[388021093,1758966670239,-480.0,0.00036712,9]
[388021094,1758966670248,-870.129204,0.00036712,30]
[388021095,1758966670258,-430.368419,0.00036712,30]
[388021096,1758966670267,-480.0,0.00036712,9]
[388021097,1758966670277,-430.368419,0.00036712,30]
[388021098,1758966670286,-1218.33306,0.00036712,15]
[388021099,1758966670295,-430.368419,0.00036712,30]
[388021100,1758966670305,-1218.33306,0.00036712,15]
[388021101,1758966670314,-1218.33306,0.00036712,15]
[388021102,1758966670324,-2320.13,0.00036712,9]
[388021103,1758966670333,-1218.33306,0.00036712,15]
[388021104,1758966670342,-480.0,0.00036712,9]
[388021105,1758966670351,-480.0,0.00036712,9]
[388021106,1758966670361,-480.0,0.00036712,9]
[388021107,1758966670370,-852.61,0.00036712,9]
[388021108,1758966670379,-497.58665775,0.00036712,9]
[388021109,1758966670388,-260.61143113,0.00036712,9]
[388021110,1758966670397,-817.82,0.00036712,9]
[388021111,1758966670407,-271.053911,0.00036712,30]
[388021112,1758966670421,-249.264531,0.00036712,30]
[388021113,1758966670431,-480.0,0.00036712,9]
[388021114,1758966670440,-271.053911,0.00036712,30]
[388021115,1758966670450,-249.264531,0.00036712,30]
[388021116,1758966670460,-480.0,0.00036712,9]
[388021117,1758966670469,-271.053911,0.00036712,30]
[388021118,1758966670479,-480.0,0.00036712,9]
[388021119,1758966670488,-480.0,0.00036712,9]
[388021120,1758966670497,-480.0,0.00036712,9]
[388021121,1758966670506,-249.264531,0.00036712,30]
[388021122,1758966670515,-480.0,0.00036712,9]
[388021123,1758966670525,-211.428054,0.00036712,30]
[388021124,1758966670535,-271.053911,0.00036712,30]
[388021125,1758966670544,-249.264531,0.00036712,30]
[388021126,1758966670553,-480.0,0.00036712,9]
[388021127,1758966670563,-211.428054,0.00036712,30]
[388021128,1758966670573,-211.428054,0.00036712,30]
[388021129,1758966670583,-1456.61,0.00036712,9]
[388021130,1758966670592,-211.428054,0.00036712,30]
[388021131,1758966670603,-218.234687,0.00036712,30]
[388021132,1758966670613,-480.0,0.00036712,9]
[388021133,1758966670623,-1004.68,0.00036712,9]
[388021134,1758966670634,-1441.83,0.00036712,9]
[388021135,1758966670644,-480.0,0.00036712,9]
[388021136,1758966670654,-687.2,0.00036712,9]
[388021137,1758966670663,-480.0,0.00036712,9]
[388021138,1758966670673,-480.0,0.00036712,9]
[388021139,1758966670683,-510.85785787,0.00036712,9]
[388021140,1758966670693,-2667.68,0.00036712,9]
[388021141,1758966670703,-151.0,0.00036712,30]
[388021142,1758966670712,-151.0,0.00036712,30]
[388021143,1758966670721,-151.0,0.00036712,30]
[388021144,1758966670731,-151.0,0.00036712,30]
[388021145,1758966670740,-151.0,0.00036712,30]
[388021146,1758966670749,-480.0,0.00036712,9]
[388021147,1758966670759,-480.0,0.00036712,9]
[388021148,1758966670768,-151.0,0.00036712,30]
[388021149,1758966670778,-486.24,0.00036712,9]
[388021150,1758966670787,-151.379764,0.00036712,30]
[388021151,1758966670796,-151.379764,0.00036712,30]
[388021152,1758966670806,-721.14,0.00036712,9]
[388021153,1758966670816,-480.0,0.00036712,9]
[388021154,1758966670825,-151.379764,0.00036712,30]
[388021155,1758966670835,-3342.96,0.00036712,9]
[388021156,1758966670844,-151.379764,0.00036712,30]
[388021157,1758966670853,-480.0,0.00036712,9]
[388021158,1758966670862,-480.0,0.00036712,9]
[388021159,1758966670872,-4872.35,0.00036712,9]
[388021160,1758966670882,-480.0,0.00036712,9]
[388021161,1758966670892,-480.0,0.00036712,9]
[388021162,1758966670901,-1500.9,0.00036712,9]
[388021163,1758966670911,-8390.61,0.00036712,9]
[388021164,1758966670920,-480.0,0.00036712,9]
[388021165,1758966670929,-480.0,0.00036712,9]
[388021166,1758966670938,-8207.9,0.00036712,9]
[388021167,1758966670947,-480.0,0.00036712,9]
[388021168,1758966670956,-1152.65,0.00036712,9]
[388021169,1758966670966,-480.0,0.00036712,9]
[388021170,1758966670975,-480.0,0.00036712,9]
[388021171,1758966670985,-361.41226678,0.00036712,9]
[388021172,1758966670995,-480.0,0.00036712,9]
[388021173,1758966671005,-418.354137,0.00036712,30]
[388021174,1758966671015,-480.0,0.00036712,9]
[388021175,1758966671024,-921.08,0.00036712,9]
[388021176,1758966671034,-582.96,0.00036712,9]
[388021177,1758966671043,-418.354137,0.00036712,30]
[388021178,1758966671053,-3281.9,0.00036712,9]
[388021179,1758966671062,-596.97,0.00036712,9]
[388021180,1758966671072,-2334.14,0.00036712,9]
[388021181,1758966671082,-418.354137,0.00036712,30]
[388021182,1758966671091,-418.354137,0.00036712,30]
[388021183,1758966671101,-480.0,0.00036712,9]
[388021184,1758966671110,-803.84,0.00036712,9]
[388021185,1758966671120,-688.1,0.00036712,9]
[388021186,1758966671129,-480.0,0.00036712,9]
[388021187,1758966671140,-719.27,0.00036712,9]
[388021188,1758966671150,-2183.08,0.00036712,9]
[388021189,1758966671159,-480.0,0.00036712,9]
[388021190,1758966671168,-480.0,0.00036712,9]
[388021191,1758966671178,-723.3,0.00036712,9]
[388021192,1758966671187,-480.0,0.00036712,9]
[388021193,1758966671196,-480.0,0.00036712,9]
[388021194,1758966671205,-512.0,0.00036712,9]
[388021195,1758966671215,-480.0,0.00036712,9]
[388021196,1758966671224,-597.43,0.00036712,9]
[388021197,1758966671233,-667.72,0.00036712,9]
[388021198,1758966671243,-545.36,0.00036712,9]
[388021199,1758966671252,-480.0,0.00036712,9]
[388021200,1758966671262,-1048.06,0.00036712,9]
[388021201,1758966671271,-480.0,0.00036712,9]
[388021202,1758966671281,-159.210637,0.00036712,30]
[388021203,1758966671291,-2744.62,0.00036712,9]
[388021204,1758966671300,-480.0,0.00036712,9]
[388021205,1758966671309,-151.0,0.00036712,30]
[388021206,1758966671319,-480.0,0.00036712,9]
[388021207,1758966671329,-480.0,0.00036712,9]
[388021208,1758966671343,-1000.0,0.00036712,9]
[388021209,1758966671352,-1896.58,0.00036712,9]
[388021210,1758966671361,-4570.814258,0.00036712,30]
[388021211,1758966671371,-151.0,0.00036712,30]
[388021212,1758966671382,-480.0,0.00036712,9]
[388021213,1758966671392,-4570.814258,0.00036712,30]
[388021214,1758966671401,-480.0,0.00036712,9]
[388021215,1758966671415,-4570.814258,0.00036712,30]
[388021216,1758966671424,-501.77,0.00036712,9]
[388021217,1758966671433,-151.0,0.00036712,30]
[388021218,1758966671442,-4570.814258,0.00036712,30]
[388021219,1758966671452,-151.0,0.00036712,30]
[388021220,1758966671461,-151.0,0.00036712,30]
[388021221,1758966671470,-480.0,0.00036712,9]
[388021222,1758966671480,-151.0,0.00036712,30]
[388021223,1758966671489,-480.0,0.00036712,9]
[388021224,1758966671498,-587.89,0.00036712,9]
[388021225,1758966671507,-151.0,0.00036712,30]
[388021226,1758966671516,-480.0,0.00036712,9]
[388021227,1758966671525,-264.591288,0.00036712,30]
[388021228,1758966671535,-3611.53,0.00036712,9]
[388021229,1758966671665,-480.0,0.00036712,9]
[388021230,1758966671682,-3921.83,0.00036712,9]
[388021231,1758966671692,-739.34,0.00036712,9]
[388021232,1758966671701,-480.0,0.00036712,9]
[388021233,1758966671711,-480.0,0.00036712,9]
[388021234,1758966671721,-151.0,0.00036712,30]
[388021235,1758966671730,-480.0,0.00036712,9]
[388021236,1758966671740,-1044.96,0.00036712,9]
[388021237,1758966671750,-151.0,0.00036712,30]
[388021238,1758966671760,-3854.54,0.00036712,9]
[388021239,1758966671770,-480.0,0.00036712,9]
[388021240,1758966671780,-711.81,0.00036712,9]
[388021241,1758966671789,-2061.79,0.00036712,9]
[388021242,1758966671801,-4529.11,0.00036712,9]
[388021243,1758966671814,-908.95,0.00036712,9]
[388021244,1758966671832,-485.09976581,0.00036712,9]
[388021245,1758966671843,-4586.51,0.00036712,9]
[388021246,1758966671852,-389.04260928,0.00036712,9]
[388021247,1758966671863,-2282.96,0.00036712,9]
[388021248,1758966671873,-480.0,0.00036712,9]
[388021249,1758966671884,-480.0,0.00036712,9]
[388021250,1758966671892,-642.28,0.00036712,9]
[388021251,1758966671902,-1558.66,0.00036712,9]
[388021252,1758966671912,-522.97,0.00036712,9]
[388021253,1758966671922,-480.0,0.00036712,9]
[388021254,1758966671932,-480.0,0.00036712,9]
[388021255,1758966671942,-480.0,0.00036712,9]
[388021256,1758966671951,-563.22,0.00036712,9]
[388021257,1758966671961,-151.0,0.00036712,30]
[388021258,1758966671971,-480.0,0.00036712,9]
[388021259,1758966671980,-151.0,0.00036712,30]
[388021260,1758966671990,-2342.73,0.00036712,9]
[388021261,1758966672000,-480.0,0.00036712,9]
[388021262,1758966672010,-151.0,0.00036712,30]
[388021263,1758966672020,-2094.05,0.00036712,9]
[388021264,1758966672031,-15362.97,0.00036712,9]
[388021265,1758966672040,-203.147311,0.00036712,30]
[388021266,1758966672050,-480.0,0.00036712,9]
[388021267,1758966672060,-8443.92,0.00036712,9]
[388021268,1758966672070,-480.0,0.00036712,9]
[388021269,1758966672080,-480.0,0.00036712,9]
[388021270,1758966672090,-480.0,0.00036712,9]
[388021271,1758966672100,-1581.11,0.00036712,9]
[388021272,1758966672110,-480.0,0.00036712,9]
[388021273,1758966672120,-480.0,0.00036712,9]
[388021274,1758966672130,-534.35,0.00036712,9]
[388021275,1758966672140,-480.0,0.00036712,9]
[388021276,1758966672151,-480.0,0.00036712,9]
[388021277,1758966672161,-1385.88,0.00036712,9]
[388021278,1758966672172,-480.0,0.00036712,9]
[388021279,1758966672183,-480.0,0.00036712,9]
[388021280,1758966672193,-763.91,0.00036712,9]
[388021281,1758966672203,-602.81,0.00036712,9]
[388021282,1758966672213,-480.0,0.00036712,9]
[388021283,1758966672223,-741.247022,0.00036712,30]
[388021284,1758966672233,-790.845021,0.00036712,30]
[388021285,1758966672243,-741.247022,0.00036712,30]
[388021286,1758966672254,-741.247022,0.00036712,30]
[388021287,1758966672264,-790.845021,0.00036712,30]
[388021288,1758966672275,-480.0,0.00036712,9]
[388021289,1758966672286,-741.247022,0.00036712,30]
[388021290,1758966672296,-790.845021,0.00036712,30]
[388021291,1758966672306,-987.64,0.00036712,9]
[388021292,1758966672317,-4012.81,0.00036712,9]
[388021293,1758966672329,-616.43,0.00036712,9]
[388021294,1758966672339,-480.0,0.00036712,9]
[388021295,1758966672349,-480.0,0.00036712,9]
[388021296,1758966672359,-790.845021,0.00036712,30]
[388021297,1758966672370,-4465.37,0.00036712,9]
[388021298,1758966672379,-480.0,0.00036712,9]
[388021299,1758966672389,-852.15,0.00036712,9]
[388021300,1758966672399,-480.0,0.00036712,9]
[388021301,1758966672409,-480.0,0.00036712,9]
[388021302,1758966672419,-10000.0,0.00036712,30]
[388021303,1758966672429,-480.0,0.00036712,9]
[388021304,1758966672440,-10000.0,0.00036712,30]
[388021305,1758966672450,-402.920001,0.00036712,30]
[388021306,1758966672462,-504.68172907,0.00036712,30]
[388021307,1758966672802,-5130.29409041,0.00036712,30]
[388021308,1758966673794,-500.0,0.00030979,2]
[388021309,1758966673805,-35.9915868,0.00030979,2]
[388021310,1758966674005,-480.0,0.00024953,13]
[388021312,1758966828651,-160.0,0.0002,7]
[388021313,1758966828679,-160.0,0.0002,7]
[388021314,1758966906414,-208.02593212,0.00024211,13]
[388021315,1758966907435,-208.02593212,0.00024211,13]
[388021317,1758966948945,-4583.94813576,0.00024211,13]
[388021318,1758966955906,832.11372848,0.00024211,2]
[388021319,1758966959246,-4167.88627152,0.00024211,2]
[388021320,1758966979538,1664.23745696,0.00024211,2]
[388021321,1758966979559,3335.76254304,0.00024211,2]
[388021322,1758967001893,5000.0,0.00024211,2]
[388021323,1758967024646,1664.24745696,0.00024211,2]
[388021324,1758967024669,3335.75254304,0.00024211,2]
[388021325,1758967040644,5000.0,0.00024211,2]
[388021326,1758967048784,1664.25745696,0.00024211,2]
[388021327,1758967048812,3335.74254304,0.00024211,2]
[388021328,1758967057776,160.0,0.00024211,2]
[388021329,1758967064880,5000.0,0.00024211,2]
[388021330,1758967072867,4840.01,0.00024211,2]
[388021331,1758967072889,64.92769285,0.00024211,2]
[388021332,1758967078786,160.0,0.0002,7]
[388021333,1758967080102,160.0,0.0002,7]
[388021334,1758967089109,5000.0,0.00024211,2]
[388021335,1758967104222,280.86432197,0.00023849,12]
[388021336,1758967113106,4334.21798518,0.00024211,2]
[388021337,1758967113129,665.78201482,0.00024211,2]
[388021338,1758967136014,5000.0,0.00024211,2]
[388021339,1758967158962,4334.22798518,0.00024211,2]
[388021340,1758967158984,665.77201482,0.00024211,2]
[388021341,1758967159758,-3738.18376676,0.00024355,2]
[388021342,1758967181903,2523.64246648,0.00024355,2]
[388021343,1758967181924,2476.35753352,0.00024355,2]
[388021344,1758967191567,454.52422965,0.00019897,2]
[388021345,1758967203963,500.0,0.00024355,2]
[388021346,1758967204559,500.0,0.00024355,2]
[388021348,1758967280062,-5000.0,0.00024749,2]
[388021349,1758967292906,0.01,0.00024749,2]
[388021350,1758967292929,4999.99,0.00024749,2]
[388021351,1758967303581,5279.9,0.00028767,120]
[388021352,1758967316415,5000.0,0.00024749,2]
[388021354,1758967339657,0.02,0.00024749,2]
[388021355,1758967339678,4999.98,0.00024749,2]
[388021356,1758967339980,-300.0,0.00025,2]
[388021357,1758967362410,5000.0,0.00025,2]
[388021358,1758967385550,4400.01,0.00025,2]
[388021359,1758967385572,599.99,0.00025,2]
[388021360,1758967386574,204.62870398,0.00024899,2]
[388021361,1758967408331,5000.0,0.00025,2]
[388021362,1758967431805,4195.39129602,0.00025,2]
[388021363,1758967431828,804.60870398,0.00025,2]
[388021364,1758967455535,5000.0,0.00025,2]
[388021365,1758967513136,-208.02593212,0.00024953,13]
[388021366,1758967513847,-208.02593212,0.00024953,13]
[388021367,1758967557122,-179.95912076,0.00024953,13]
[388021368,1758967580933,-4403.989015,0.00024953,13]
[388021369,1758967588142,1192.03197,0.00024953,2]
[388021370,1758967588161,3807.96803,0.00024953,2]
[388021371,1758967647093,-695.59030818,0.00024953,13]
[388021372,1758967747086,-4163.86815074,0.00024953,13]
[388021373,1758967759090,-140.54154108,0.00024953,13]
[388021374,1758967759111,-165.17571523,0.00026396,2]
[388021375,1758967759141,-905.82428477,0.00026396,2]
[388021376,1758967759160,-1200.0,0.00026396,2]
[388021377,1758967759183,-300.0,0.00026396,2]
[388021378,1758967759203,-4898.71906693,0.00026397,2]
[388021379,1758967773202,-2350.75289401,0.00024953,13]
[388021493,1758967832608,-101.28093307,0.00026397,2]
[388021496,1758967832619,-305.0,0.00026438,20]
[388021499,1758967832629,-300.0,0.00027077,2]
[388021502,1758967832638,-4279.52078558,0.00027079,2]
[388021505,1758967832648,-480.0,0.00028555,2]
[388021508,1758967832658,-356.9027732,0.00029261,2]
[388021511,1758967832668,-420.0,0.00029271,2]
[388021514,1758967832678,-173.0,0.00029726,36]
[388021517,1758967832687,-3534.1599739,0.00029848,2]
[388021520,1758967832697,-500.0,0.00029999,2]
[388021523,1758967832706,-282.74767065,0.00029999,2]
[388021526,1758967832716,-500.0,0.00029999,2]
[388021529,1758967832725,-500.0,0.00029999,2]
[388021531,1758967832735,-500.0,0.00029999,2]
[388021533,1758967832745,-500.0,0.00029999,2]
[388021535,1758967832755,-500.0,0.00029999,2]
[388021537,1758967832764,-160.0,0.0003,10]
[388021539,1758967832775,-160.0,0.0003,10]
[388021542,1758967832785,-160.0,0.0003,10]
[388021545,1758967832796,-213.778581,0.00030041,2]
[388021548,1758967832805,-203.902638,0.00030535,60]
[388021551,1758967832815,-1000.0,0.00030631,30]
[388021553,1758967832825,-587.0,0.00031643,2]
[388021556,1758967832834,-1000.0,0.0003178,7]
[388021559,1758967832843,-920.0,0.00032191,7]
[388021562,1758967832853,-691.89052252,0.000327,2]
[388021564,1758967832863,-150.0,0.000328,13]
[388021566,1758967832872,-284.402,0.000328,33]
[388021568,1758967832882,-764.60636,0.00032877,2]
[388021570,1758967832892,-151.0,0.00032897,60]
[388021572,1758967832903,-5000.0,0.00032897,4]
[388021574,1758967832914,-250.0,0.00033304,2]
[388021576,1758967832924,-979.0,0.00033839,2]
[388021578,1758967832935,-635.0,0.00033878,2]
[388021580,1758967832945,-2161.0,0.00033878,2]
[388021582,1758967832955,-410.0,0.00033903,2]
[388021584,1758967832965,-691.89052249,0.00033924,2]
[388021586,1758967832975,-823.0,0.00034207,2]
[388021588,1758967832985,-3031.44,0.00034492,6]
[388021590,1758967832994,-10000.0,0.00034492,6]
[388021592,1758967833006,-10000.0,0.00034492,6]
[388021594,1758967833015,-160.0,0.00034575,2]
[388021596,1758967833024,-160.0,0.00034575,2]
[388021598,1758967833035,-160.0,0.00034575,2]
[388021600,1758967833045,-160.0,0.00034575,2]
[388021602,1758967833055,-150.0,0.00034693,2]
[388021604,1758967833065,-150.0,0.00034693,2]
[388021606,1758967833076,-295.0,0.00034693,2]
[388021608,1758967833085,-686.85,0.0003498,3]
[388021610,1758967833096,-359.97987382,0.00034989,7]
[388021612,1758967833105,-275.20734994,0.00034989,7]
[388021614,1758967833115,-100000.0,0.0003499,2]
[388021616,1758967833125,-1790.0,0.00035105,2]
[388021618,1758967833135,-500.0,0.00035105,2]
[388021620,1758967833145,-691.89052249,0.00035148,2]
[388021622,1758967833155,-157.0,0.00035205,76]
[388021624,1758967833169,-5215.60405822,0.00035396,2]
[388021627,1758967833189,-72741.18279595,0.00035475,3]
[388021630,1758967833205,-7181.09997565,0.00035475,3]
[388021632,1758967833216,-6429.14240613,0.00035475,3]
[388021634,1758967833227,-79922.2827716,0.00035486,3]
[388021636,1758967833237,-6429.14240613,0.00035486,3]
[388021638,1758967833247,-26640.7609239,0.00035486,3]
[388021640,1758967833259,-2143.04746871,0.00035486,3]
[388021642,1758967833269,-8772.0799146,0.00035496,3]
[388021644,1758967833281,-1156.2,0.00035496,3]
[388021647,1758967833294,-1531.44999057,0.00035496,3]
[388021650,1758967833314,-41821.79194253,0.00035496,3]
[388021652,1758967833324,-5090.4709898,0.00035496,3]
[388021654,1758967833337,-9910.8612912,0.00035496,3]
[388021656,1758967833348,-278.94286089,0.00035506,2]
[388021659,1758967833364,-369721.05713911,0.00035506,2]
[388021661,1758967833375,-519.99,0.00035506,10]
[388021663,1758967833385,-2143.04746871,0.00035563,3]
[388021665,1758967833395,-500.0,0.00035573,5]
[388021667,1758967833406,-500.0,0.00035573,2]
[388021669,1758967833417,-500.0,0.00035573,2]
[388021671,1758967833427,-500.0,0.00035573,5]
[388021673,1758967833437,-274.97301225,0.00035573,5]
[388021675,1758967833447,-500.0,0.00035573,5]
[388021677,1758967833458,-500.0,0.00035573,5]
[388021680,1758967833468,-500.0,0.00035573,5]
[388021682,1758967833479,-200.0,0.000356,2]
[388021684,1758967833489,-200.0,0.000356,3]
[388021686,1758967833499,-160.0,0.00035606,3]
[388021688,1758967833510,-10715.2373435,0.00035606,3]
[388021690,1758967833521,-480.0,0.00035616,9]
[388021692,1758967833531,-480.0,0.00035616,9]
[388021694,1758967833542,-480.0,0.00035616,9]
[388021696,1758967833552,-480.0,0.00035616,9]
[388021698,1758967833562,-480.0,0.00035616,9]
[388021700,1758967833573,-480.0,0.00035616,9]
[388021702,1758967833583,-480.0,0.00035616,9]
[388021705,1758967833594,-661.13,0.00035616,9]
[388021707,1758967833604,-480.0,0.00035616,9]
[388021709,1758967833614,-480.0,0.00035616,9]
[388021711,1758967833624,-480.0,0.00035616,9]
[388021713,1758967833634,-480.0,0.00035616,9]
[388021715,1758967833644,-480.0,0.00035616,9]
[388021717,1758967833655,-480.0,0.00035616,9]
[388021719,1758967833666,-288.73561339,0.00035616,9]
[388021721,1758967833676,-480.0,0.00035616,9]
[388021723,1758967833686,-480.0,0.00035616,9]
[388021725,1758967833696,-307.42018252,0.00035616,9]
[388021727,1758967833705,-480.0,0.00035616,9]
[388021728,1758967833716,-480.0,0.00035616,9]
[388021730,1758967833729,-480.0,0.00035616,9]
[388021732,1758967833740,-638.44,0.00035616,9]
[388021735,1758967833752,-638.44,0.00035616,9]
[388021736,1758967833762,-638.44,0.00035616,9]
[388021739,1758967833773,-638.44,0.00035616,9]
[388021741,1758967833784,-638.44,0.00035616,9]
[388021742,1758967833795,-638.44,0.00035616,9]
[388021744,1758967833806,-638.44,0.00035616,9]
[388021746,1758967833817,-638.44,0.00035616,9]
[388021748,1758967833828,-638.44,0.00035616,9]
[388021751,1758967833839,-638.44,0.00035616,9]
[388021753,1758967833849,-638.44,0.00035616,9]
[388021754,1758967833859,-638.44,0.00035616,9]
[388021755,1758967833869,-638.44,0.00035616,9]
[388021756,1758967833879,-638.44,0.00035616,9]
[388021757,1758967833888,-480.0,0.00035616,9]
[388021758,1758967833898,-480.0,0.00035616,9]
[388021759,1758967833908,-434.83165319,0.00035616,9]
[388021760,1758967833919,-480.0,0.00035616,9]
[388021761,1758967833929,-485.82,0.00035616,9]
[388021762,1758967833939,-480.0,0.00035616,9]
[388021763,1758967833948,-480.0,0.00035616,9]
[388021764,1758967833958,-480.0,0.00035616,9]
[388021765,1758967833967,-559.51,0.00035616,9]
[388021766,1758967833977,-480.0,0.00035616,9]
[388021767,1758967833987,-480.0,0.00035616,9]
[388021768,1758967833996,-480.0,0.00035616,9]
[388021769,1758967834006,-480.0,0.00035616,9]
[388021770,1758967834015,-1127.16,0.00035616,9]
[388021771,1758967834025,-735.24,0.00035616,9]
[388021772,1758967834034,-480.0,0.00035616,9]
[388021773,1758967834044,-480.0,0.00035616,9]
[388021774,1758967834053,-486.58,0.00035616,9]
[388021776,1758967834063,-827.09,0.00035616,9]
[388021778,1758967834073,-947.01,0.00035616,9]
[388021780,1758967834083,-989.0,0.00035616,9]
[388021782,1758967834093,-480.0,0.00035616,9]
[388021784,1758967834103,-480.0,0.00035616,9]
[388021786,1758967834112,-480.0,0.00035616,9]
[388021788,1758967834123,-480.0,0.00035616,9]
[388021790,1758967834132,-1743.89,0.00035616,9]
[388021792,1758967834142,-178.81001662,0.00035616,9]
[388021794,1758967834152,-480.0,0.00035616,9]
[388021796,1758967834163,-480.0,0.00035616,9]
[388021797,1758967834172,-629.49140298,0.00035616,9]
[388021799,1758967834182,-592.29624936,0.00035616,9]
[388021801,1758967834192,-480.0,0.00035616,9]
[388021803,1758967834202,-480.0,0.00035616,9]
[388021804,1758967834211,-480.0,0.00035616,9]
[388021806,1758967834221,-709.42,0.00035616,9]
[388021807,1758967834231,-480.0,0.00035616,9]
[388021808,1758967834241,-480.0,0.00035616,9]
[388021809,1758967834251,-480.0,0.00035616,9]
[388021810,1758967834262,-480.0,0.00035616,9]
[388021811,1758967834272,-480.0,0.00035616,9]
[388021813,1758967834282,-583.70434838,0.00035616,9]
[388021815,1758967834293,-480.0,0.00035616,9]
[388021817,1758967834304,-480.0,0.00035616,9]
[388021818,1758967834313,-480.0,0.00035616,9]
[388021819,1758967834323,-480.0,0.00035616,9]
[388021820,1758967834333,-480.0,0.00035616,9]
[388021821,1758967834343,-480.0,0.00035616,9]
[388021823,1758967834353,-480.0,0.00035616,9]
[388021825,1758967834363,-480.0,0.00035616,9]
[388021827,1758967834373,-745.53,0.00035616,9]
[388021829,1758967834383,-615.01,0.00035616,9]
[388021831,1758967834394,-480.0,0.00035616,9]
[388021833,1758967834404,-480.0,0.00035616,9]
[388021835,1758967834415,-480.0,0.00035616,9]
[388021837,1758967834426,-592.88,0.00035616,9]
[388021839,1758967834436,-480.0,0.00035616,9]
[388021841,1758967834446,-480.0,0.00035616,9]
[388021843,1758967834458,-795.37,0.00035616,9]
[388021845,1758967834467,-1579.53,0.00035616,9]
[388021847,1758967834477,-566.39,0.00035616,9]
[388021849,1758967834487,-480.0,0.00035616,9]
[388021851,1758967834497,-480.0,0.00035616,9]
[388021853,1758967834506,-480.0,0.00035616,9]
[388021855,1758967834516,-480.0,0.00035616,9]
[388021857,1758967834525,-1941.07,0.00035616,9]
[388021859,1758967834537,-480.0,0.00035616,9]
[388021861,1758967834547,-487.79412037,0.00035616,9]
[388021863,1758967834557,-480.0,0.00035616,9]
[388021865,1758967834567,-480.0,0.00035616,9]
[388021867,1758967834576,-480.0,0.00035616,9]
[388021869,1758967834586,-2370.34,0.00035616,9]
[388021871,1758967834596,-480.0,0.00035616,9]
[388021873,1758967834605,-480.0,0.00035616,9]
[388021875,1758967834615,-480.0,0.00035616,9]
[388021877,1758967834625,-480.0,0.00035616,9]
[388021879,1758967834635,-480.0,0.00035616,9]
[388021881,1758967834644,-480.0,0.00035616,9]
[388021883,1758967834654,-480.0,0.00035616,9]
[388021885,1758967834664,-1122.46,0.00035616,9]
[388021887,1758967834673,-480.0,0.00035616,9]